fUST/lending_fUST_20240818
["ID","MTS","AMOUNT","RATE_DAILY","PERIOD"]
[335189741,1723962640511,-500.0,0.00018989,7]
[335189742,1723962640522,-500.0,0.00018989,7]
[335189743,1723962640533,-500.0,0.00018989,7]
[335189744,1723962640543,-14.6328582,0.00018989,7]
[335189765,1723962694073,273.37336231,0.00015001,2]
[335189766,1723962701939,402.39526011,0.00015001,2]
[335189767,1723962710756,273.37336231,0.00015001,2]
[335189768,1723962714199,2595.37977838,0.00014519,2]
[335189769,1723962726678,270.62453212,0.00015001,2]
[335189770,1723962734700,273.37336231,0.00015001,2]
[335189772,1723962820439,166.08448452,0.00014519,2]
[335189773,1723962827204,946.49166586,0.00014519,2]
[335189774,1723962828911,155.54473646,0.00014519,2]
[335189775,1723962836151,154.71377951,0.00014519,2]
[335189776,1723962837454,522.71848665,0.00014519,2]
[335189777,1723962841063,162.963511,0.00014247,2]
[335189778,1723962845769,636.72640188,0.00014519,2]
[335189779,1723962847298,154.9444746,0.00014519,2]
[335189780,1723962849569,357.77977681,0.00014519,2]
[335189781,1723962852871,303.23648945,0.00014519,2]
[335189782,1723962862098,422.1184028,0.00014519,2]
[335189783,1723962865242,309.67712516,0.00014519,2]
[335189784,1723962876269,155.04615955,0.00014519,2]
[335189785,1723962910123,494.81071941,0.00014519,2]
[335189786,1723962922203,215.43946307,0.00014519,2]
[335189791,1723963278790,483.95250902,0.00014519,2]
[335189792,1723963348002,167.548246,0.00014247,2]
[335189794,1723963628125,-930.78681229,0.000158,2]
[335189795,1723963636239,-1828.41163241,0.000158,2]
[335189796,1723963638109,-618.25284046,0.000158,2]
[335189798,1723963647295,-1077.81064059,0.000158,2]
[335189799,1723963647318,-354.74330037,0.000159,2]
[335189800,1723963647344,-774.97428981,0.00016729,2]
[335189801,1723963652334,-313.91151072,0.00016729,2]
[335189803,1723963772141,-245.0,0.00016629,2]
[335189807,1723963816314,245.0,0.000159,2]
[335189808,1723963816337,227.88054601,0.000159,2]
[335189853,1723963832189,-27.11945399,0.000159,2]
[335189854,1723963832199,-361.30100116,0.000159,2]
[335189855,1723963832211,-138.69899884,0.000159,2]
[335189856,1723963832220,-499.77476235,0.000159,2]
[335189857,1723963832232,-0.22523765,0.000159,2]
[335189858,1723963832242,-500.0,0.000159,2]
[335189859,1723963832251,-500.0,0.000159,2]
[335189860,1723963832260,-500.0,0.000159,2]
[335189861,1723963832269,-500.0,0.000159,2]
[335189862,1723963832279,-500.0,0.000159,2]
[335189863,1723963832288,-500.0,0.000159,2]
[335189864,1723963832298,-500.0,0.000159,2]
[335189865,1723963832307,-500.0,0.000159,2]
[335189866,1723963832317,-500.0,0.000159,2]
[335189867,1723963832326,-500.0,0.000159,2]
[335189868,1723963832335,-500.0,0.000159,2]
[335189869,1723963832345,-500.0,0.000159,2]
[335189870,1723963832355,-238.47291602,0.000159,2]
[335189871,1723963832364,-805.62112337,0.00016629,2]
[335189872,1723963832374,-4609.91314778,0.00016729,2]
[335189873,1723963832386,-596.90435396,0.00016729,2]
[335189936,1723963840461,-937.76359603,0.00016729,2]
[335189938,1723963840472,-392.265127,0.00016986,2]
[335189940,1723963840482,-823.0730649,0.00017055,2]
[335189942,1723963840491,-160.704651,0.00017058,2]
[335189944,1723963840500,-160.704651,0.00017185,2]
[335189946,1723963840510,-238.540303,0.00017186,2]
[335189948,1723963840519,-160.704651,0.00017312,2]
[335189950,1723963840529,-160.704651,0.00017439,2]
[335189952,1723963840538,-160.704651,0.00017566,2]
[335189954,1723963840548,-160.704651,0.00017693,2]
[335189956,1723963840558,-160.704651,0.0001782,2]
[335189958,1723963840567,-160.704651,0.00017947,2]
[335189960,1723963840577,-2409.26672836,0.00017999,2]
[335190028,1723964278416,188.34866886,0.00014519,2]
[335190029,1723964297093,175.467184,0.00014247,2]
[335190056,1723964825147,-191.9731999,0.00016886,2]
[335190057,1723964825168,-372.651871,0.00016986,2]
[335190058,1723964825189,-198.750197,0.00017118,2]
[335190059,1723964825210,-151.06078858,0.00017142,2]
[335190061,1723964829128,-259.79485532,0.00017142,2]
[335190062,1723964829151,-155.02748706,0.00017267,2]
[335190063,1723964829174,-162.296038,0.00017301,2]
[335190064,1723964829196,-162.296038,0.00017376,2]
[335190065,1723964829221,-162.296038,0.00017451,2]
[335190066,1723964829245,-162.296038,0.00017526,2]
[335190067,1723964829268,-232.5311694,0.00017544,2]
[335190068,1723964829291,-410.23947632,0.00017577,2]
[335190070,1723964836108,-154.71377951,0.00017259,2]
[335190071,1723964836132,-501.69353437,0.00017539,2]
[335190072,1723964837321,-3263.93449467,0.00017539,2]
[335190073,1723964837343,-822.95673662,0.00017599,2]
[335190074,1723964853089,-162.296038,0.00017601,2]
[335190075,1723964853111,-162.296038,0.00017676,2]
[335190076,1723964853134,-162.296038,0.00017752,2]
[335190077,1723964853157,-162.296038,0.00017827,2]
[335190078,1723964853179,-300.0,0.00017895,2]
[335190079,1723964853200,-300.0,0.00017895,2]
[335190080,1723964853221,-644.43542928,0.00017898,2]
[335190088,1723964968088,-229.45880909,0.00017267,2]
[335190110,1723965032287,-1000.0,0.00017,17]
[335190111,1723965032298,-202.854548,0.00017286,2]
[335190112,1723965032309,-300.0,0.00017897,2]
[335190113,1723965032319,-300.0,0.00017897,2]
[335190114,1723965032331,-9697.23146471,0.00017898,2]
[335190117,1723965032344,-162.296038,0.00017902,2]
[335190118,1723965032354,-162.296038,0.00017977,2]
[335190119,1723965032364,-5244.23039316,0.00017999,2]
[335190120,1723965032374,-1000.0,0.00018,18]
[335190121,1723965032384,-162.296038,0.00018052,2]
[335190122,1723965032394,-162.204175,0.00018072,2]
[335190123,1723965032404,-3765.62802904,0.00018105,2]
[335190124,1723965032415,-162.296038,0.00018127,2]
[335190125,1723965032425,-500.0,0.00018157,2]
[335190126,1723965032435,-162.296038,0.00018202,2]
[335190127,1723965032445,-465.06390448,0.00018453,2]
[335190128,1723965032455,-1000.0,0.00018757,2]
[335190129,1723965032466,-4437.77354483,0.00018799,2]
[335190130,1723965032475,-1137.85865784,0.00018811,2]
[335190131,1723965032486,-500.0,0.00018899,7]
[335190132,1723965032495,-500.0,0.00018899,7]
[335190133,1723965032505,-500.0,0.00018899,7]
[335190134,1723965032514,-428.05,0.00018899,7]
[335190135,1723965032524,-500.0,0.00018899,7]
[335190136,1723965032534,-500.0,0.00018899,7]
[335190137,1723965032543,-500.0,0.00018899,7]
[335190138,1723965032554,-500.0,0.00018899,7]
[335190139,1723965032564,-500.0,0.00018899,7]
[335190140,1723965032574,-500.0,0.00018899,7]
[335190141,1723965032584,-500.0,0.00018899,7]
[335190142,1723965032594,-500.0,0.00018899,7]
[335190143,1723965032605,-500.0,0.00018899,7]
[335190144,1723965032616,-500.0,0.00018899,7]
[335190145,1723965032627,-523.49,0.00018899,7]
[335190146,1723965032641,-568.79,0.00018899,7]
[335190147,1723965032650,-151.0,0.00018899,2]
[335190148,1723965032660,-311.472603,0.00018899,2]
[335190149,1723965032670,-311.472603,0.00018899,2]
[335190150,1723965032680,-150.01,0.00018901,2]
[335190151,1723965032690,-5992.49293948,0.00018901,2]
[335190152,1723965032699,-151.0,0.00018901,2]
[335190153,1723965032710,-311.472603,0.00018901,2]
[335190154,1723965032719,-311.472603,0.00018901,2]
[335190155,1723965032730,-1000.0,0.00018904,2]
[335190156,1723965032740,-183.62042467,0.00018998,2]
[335190157,1723965032750,-500.0,0.00018998,2]
[335190158,1723965032763,-90869.37593267,0.00018999,2]
[335190159,1723965032777,-60823.6193585,0.00018999,2]
[335190168,1723965038231,-908.95806516,0.00017208,2]
[335190169,1723965038274,-920.79008791,0.00017208,2]
[335190170,1723965038284,-500.0,0.00018157,2]
[335190171,1723965038294,-500.0,0.00018157,2]
[335190172,1723965038303,-500.0,0.00018157,2]
[335190173,1723965038313,-500.0,0.00018157,2]
[335190174,1723965038323,-263.59351933,0.00018157,2]
[335190175,1723965038333,-500.0,0.00018998,2]
[335190176,1723965038343,-500.0,0.00018998,2]
[335190177,1723965038352,-413.89268596,0.00018998,2]
[335190537,1723965043554,-9.01854245,0.00018998,2]
[335190558,1723965206162,191.873109,0.00014247,2]
[335190559,1723965207344,234.14164193,0.00014519,2]
[335190561,1723965230645,522.96413212,0.00014519,2]
[335190569,1723965366687,100664.16900915,0.00015,2]
[335190571,1723965407481,190.69895176,0.00014519,2]
[335190576,1723965490401,154.79103211,0.00014519,2]
[335190577,1723965507235,1618.59802424,0.00014519,2]
[335190578,1723965520213,544.90851251,0.00014519,2]
[335190580,1723965537657,156.98597021,0.00014519,2]
[335190581,1723965553994,810.98237385,0.00014519,2]
[335190582,1723965557495,190.25739912,0.00014519,2]
[335190583,1723965575385,1500.0,0.00014519,2]
[335190594,1723965913456,199.08415869,0.00014519,2]
[335190598,1723966028162,-601.60199302,0.00016968,2]
[335190599,1723966028186,-358.950615,0.00016986,2]
[335190600,1723966028222,-202.8545483,0.0001737,2]
[335190601,1723966028250,-702.6271074,0.0001741,2]
[335190602,1723966029112,-1865.11993232,0.0001741,2]
[335190603,1723966029142,-914.71805837,0.0001741,2]
[335190604,1723966040116,-611.59324963,0.0001741,2]
[335190605,1723966059476,199.08415869,0.00014519,2]
[335190612,1723966145827,190.436316,0.00014247,2]
[335190615,1723966173153,-221.75256515,0.0001731,2]
[335190616,1723966174465,154.79103211,0.00014519,2]
[335190636,1723966232439,-389.121131,0.00016986,2]
[335190638,1723966232449,-340.55564859,0.0001731,2]
[335190640,1723966232458,-1909.68832738,0.0001741,2]
[335190641,1723966232469,-210.14248726,0.000175,2]
[335190644,1723966232479,-210.14248726,0.000175,2]
[335190646,1723966232489,-226.534918,0.00017535,2]
[335190648,1723966232498,-154.87140246,0.00017598,2]
[335190650,1723966232508,-471.83009965,0.00017816,2]
[335190652,1723966232517,-167.107481,0.00017892,2]
[335190654,1723966232526,-167.107481,0.00017921,2]
[335190656,1723966232536,-167.107481,0.00017951,2]
[335190658,1723966232545,-167.107481,0.00017981,2]
[335190660,1723966232555,-1000.0,0.00018,18]
[335190663,1723966232564,-277.63683817,0.00018135,2]
[335190666,1723966232577,-226.534918,0.00018449,2]
[335190669,1723966232590,-465.34150498,0.00018707,2]
[335190671,1723966232599,-255.10544123,0.0001875,2]
[335190682,1723966232712,-44.89455877,0.0001875,2]
[335190684,1723966232722,-1000.0,0.00018767,2]
[335190686,1723966232732,-95.15750408,0.00018787,2]
[335190755,1723966238531,-154.71377951,0.00018719,2]
[335190758,1723966238542,-893.35684302,0.00018779,2]
[335190908,1723966240909,-3283.44564512,0.00018779,2]
[335190910,1723966240920,-318.73312307,0.00018787,2]
[335190912,1723966240931,-984.9602534,0.00018789,2]
[335190914,1723966240941,-300.0,0.00018809,2]
[335190916,1723966240952,-1000.0,0.00018811,2]
[335190918,1723966240963,-413.89062713,0.00018813,2]
[335190920,1723966240972,-134.70978501,0.00018838,2]
[335190984,1723966243516,-279.18084212,0.00018838,2]
[335190985,1723966243526,-300.55101115,0.00018851,2]
[335190986,1723966243536,-413.89062713,0.00018864,2]
[335190987,1723966243545,-417.22,0.00018865,3]
[335190988,1723966243554,-208.61,0.00018865,3]
[335190989,1723966243563,-625.87,0.00018865,3]
[335190990,1723966243572,-1000.0,0.00018872,2]
[335190991,1723966243588,-307.06594659,0.00018873,2]
[335190992,1723966243599,-500.0,0.00018874,2]
[335190993,1723966243611,-500.0,0.00018874,2]
[335190994,1723966243621,-192.21887079,0.00018874,2]
[335190995,1723966243632,-500.0,0.00018874,2]
[335190996,1723966243641,-500.0,0.00018874,2]
[335190997,1723966243652,-500.0,0.00018874,2]
[335190998,1723966243661,-500.0,0.00018874,2]
[335190999,1723966243673,-500.0,0.00018874,2]
[335191000,1723966243683,-500.0,0.00018874,2]
[335191001,1723966243694,-500.0,0.00018874,2]
[335191002,1723966243704,-500.0,0.00018874,2]
[335191003,1723966243715,-500.0,0.00018874,2]
[335191004,1723966243725,-500.0,0.00018874,2]
[335191005,1723966243734,-500.0,0.00018874,2]
[335191006,1723966243743,-500.0,0.00018874,2]
[335191007,1723966243753,-500.0,0.00018874,2]
[335191008,1723966243762,-500.0,0.00018874,2]
[335191009,1723966243772,-500.0,0.00018874,2]
[335191010,1723966243783,-500.0,0.00018874,2]
[335191011,1723966243793,-177.03965289,0.00018874,2]
[335191012,1723966243803,-500.0,0.00018874,2]
[335191013,1723966243813,-500.0,0.00018874,2]
[335191014,1723966243823,-500.0,0.00018874,2]
[335191015,1723966243833,-500.0,0.00018874,2]
[335191016,1723966243842,-500.0,0.00018874,2]
[335191017,1723966243851,-500.0,0.00018874,2]
[335191018,1723966243861,-250562.725933,0.00018875,2]
[335191019,1723966243870,-62640.6814831,0.00018879,2]
[335191020,1723966243879,-252090.79069367,0.00018885,2]
[335191021,1723966243889,-413.89062713,0.00018889,2]
[335191022,1723966243898,-1000.0,0.00018899,2]
[335191023,1723966243907,-1049.2285201,0.00018925,2]
[335191024,1723966243916,-200.0,0.00018973,2]
[335191025,1723966243926,-200.0,0.00018973,2]
[335191026,1723966243935,-1000.0,0.00018974,2]
[335191027,1723966243944,-162.20556,0.0001898,2]
[335191028,1723966243953,-162.20556,0.0001898,2]
[335191029,1723966243962,-264.278082,0.0001898,2]
[335191030,1723966243971,-264.278082,0.0001898,2]
[335191031,1723966243981,-1000.0,0.00018989,2]
[335191032,1723966243990,-155.987423,0.0001899,2]
[335191033,1723966244001,-155.987423,0.0001899,2]
[335191034,1723966244010,-151.0,0.0001899,2]
[335191035,1723966244020,-150.01,0.00018998,2]
[335191036,1723966244030,-5992.49293948,0.00018998,2]
[335191037,1723966244039,-759675.53966,0.00018999,2]
[335191038,1723966244048,-3244.0,0.00019,2]
[335191039,1723966244057,-300.0,0.00019,2]
[335191040,1723966244067,-3000.0,0.00019,2]
[335191042,1723966244076,-308.9815892,0.00019,2]
[335191044,1723966244096,-8000.0,0.00019,2]
[335191046,1723966244105,-10000.0,0.00019,19]
[335191048,1723966244115,-8355.31570085,0.00019,2]
[335191051,1723966244127,-155.987423,0.00019,2]
[335191053,1723966244139,-155.987423,0.00019,2]
[335191054,1723966244150,-155.987423,0.00019,2]
[335191055,1723966244164,-155.987423,0.00019,2]
[335191056,1723966244175,-151.0,0.00019,2]
[335191057,1723966244184,-151.0,0.00019,2]
[335191058,1723966244195,-162.20556,0.00019,2]
[335191059,1723966244206,-162.20556,0.00019,2]
[335191060,1723966244216,-162.20556,0.00019,2]
[335191061,1723966244227,-162.20556,0.00019,2]
[335191062,1723966244238,-264.278082,0.00019,2]
[335191063,1723966244247,-264.278082,0.00019,2]
[335191064,1723966244257,-264.278082,0.00019,2]
[335191065,1723966244268,-264.278082,0.00019,2]
[335191066,1723966244279,-162.20556,0.00019019,2]
[335191067,1723966244290,-162.20556,0.00019019,2]
[335191069,1723966244301,-264.278082,0.00019019,2]
[335191071,1723966244310,-264.278082,0.00019019,2]
[335191073,1723966244321,-410.16744298,0.00019178,2]
[335191075,1723966244334,-177.854224,0.00019178,2]
[335191077,1723966244344,-179.150521,0.00019178,2]
[335191079,1723966244354,-165.9815653,0.00019178,2]
[335191081,1723966244365,-165.981565,0.00019178,2]
[335191083,1723966244377,-163.66565,0.00019178,2]
[335191086,1723966244388,-251.0,0.00019178,2]
[335191100,1723966244518,-500.0,0.0001918,2]
[335191102,1723966244531,-150.112233,0.000192,2]
[335191104,1723966244540,-156.0,0.0001926,2]
[335191106,1723966244551,-150.112233,0.000193,2]
[335191108,1723966244562,-150.112233,0.000194,2]
[335191111,1723966244574,-150.112233,0.000194,2]
[335191113,1723966244586,-155.987423,0.00019442,2]
[335191115,1723966244596,-155.987423,0.00019442,2]
[335191117,1723966244606,-151.0,0.00019442,2]
[335191119,1723966244616,-1429.987,0.00019442,2]
[335191121,1723966244625,-8333.0,0.00019442,2]
[335191123,1723966244634,-150.0,0.00019442,2]
[335191125,1723966244643,-521.0,0.00019442,2]
[335191127,1723966244653,-150.112233,0.000195,2]
[335191129,1723966244662,-603.0,0.000195,2]
[335191131,1723966244671,-150.112233,0.000195,2]
[335191133,1723966244680,-162.20556,0.00019512,2]
[335191135,1723966244690,-162.20556,0.00019512,2]
[335191137,1723966244699,-264.278082,0.00019512,2]
[335191139,1723966244708,-264.278082,0.00019512,2]
[335191141,1723966244718,-88888.0,0.00019512,2]
[335191143,1723966244727,-842.75312465,0.0001957,2]
[335191145,1723966244736,-1631.09682054,0.000196,2]
[335191147,1723966244745,-1631.09682052,0.000196,2]
[335191149,1723966244754,-1631.09682052,0.000196,2]
[335191151,1723966244763,-1631.09682052,0.000196,2]
[335191153,1723966244772,-150.112233,0.000196,2]
[335191155,1723966244782,-150.112233,0.000196,2]
[335191157,1723966244791,-150.112233,0.000196,2]
[335191159,1723966244801,-155.987423,0.00019602,2]
[335191161,1723966244810,-155.987423,0.00019602,2]
[335191163,1723966244819,-151.0,0.00019602,2]
[335191165,1723966244830,-155.987423,0.00019612,2]
[335191167,1723966244839,-155.987423,0.00019612,2]
[335191169,1723966244848,-151.0,0.00019612,2]
[335191171,1723966244858,-162.20556,0.00019612,2]
[335191173,1723966244868,-162.20556,0.00019612,2]
[335191175,1723966244877,-264.278082,0.00019612,2]
[335191177,1723966244886,-264.278082,0.00019612,2]
[335191179,1723966244895,-28382.2699446,0.00019612,2]
[335191181,1723966244904,-165.964,0.00019633,2]
[335191183,1723966244914,-239.491,0.00019633,2]
[335191185,1723966244923,-245.501,0.00019633,2]
[335191187,1723966244933,-250.0,0.00019633,2]
[335191189,1723966244942,-299.016,0.00019633,2]
[335191191,1723966244951,-465.01707525,0.00019643,2]
[335191193,1723966244961,-266.81078919,0.000197,2]
[335191195,1723966244970,-150.112233,0.000197,2]
[335191197,1723966244980,-150.112233,0.000197,2]
[335191199,1723966244989,-150.112233,0.000197,2]
[335191201,1723966244998,-150.112233,0.000197,2]
[335191203,1723966245008,-158.000077,0.000197,2]
[335191205,1723966245017,-150.112233,0.000197,2]
[335191207,1723966245026,-150.112237,0.000197,2]
[335191209,1723966245037,-150.112233,0.000197,2]
[335191211,1723966245046,-200.0,0.00019773,2]
[335191213,1723966245055,-155.987423,0.0001979,2]
[335191215,1723966245064,-155.987423,0.0001979,2]
[335191217,1723966245073,-151.0,0.0001979,2]
[335191219,1723966245084,-499.99999927,0.000198,2]
[335191221,1723966245095,-961250.80890091,0.000198,2]
[335191223,1723966245105,-150.112233,0.000198,2]
[335191225,1723966245115,-150.112233,0.000198,2]
[335191227,1723966245124,-150.112242,0.000198,2]
[335191229,1723966245134,-150.11224,0.000198,2]
[335191231,1723966245143,-155.987423,0.000198,2]
[335191233,1723966245152,-155.987423,0.000198,2]
[335191235,1723966245163,-3000.0,0.000198,2]
[335191237,1723966245172,-151.0,0.000198,2]
[335191239,1723966245182,-162.20556,0.000198,2]
[335191241,1723966245192,-162.20556,0.000198,2]
[335191243,1723966245202,-1200.0,0.000198,2]
[335191245,1723966245211,-446.669891,0.000198,2]
[335191247,1723966245221,-264.278082,0.000198,2]
[335191249,1723966245230,-264.278082,0.000198,2]
[335191251,1723966245239,-3000.0,0.0001981,2]
[335191253,1723966245248,-3000.0,0.0001982,2]
[335191255,1723966245257,-3000.0,0.0001983,2]
[335191257,1723966245267,-155.987423,0.0001984,2]
[335191259,1723966245275,-155.987423,0.0001984,2]
[335191261,1723966245285,-3000.0,0.0001984,2]
[335191263,1723966245294,-151.0,0.0001984,2]
[335191265,1723966245304,-162.20556,0.0001984,2]
[335191267,1723966245314,-162.20556,0.0001984,2]
[335191269,1723966245323,-264.278082,0.0001984,2]
[335191271,1723966245334,-264.278082,0.0001984,2]
[335191273,1723966245343,-3000.0,0.0001985,2]
[335191275,1723966245352,-3000.0,0.0001986,2]
[335191277,1723966245362,-3000.0,0.0001987,2]
[335191280,1723966245371,-3000.0,0.0001988,2]
[335191282,1723966245381,-162.20556,0.0001988,2]
[335191284,1723966245391,-162.20556,0.0001988,2]
[335191286,1723966245400,-264.278082,0.0001988,2]
[335191288,1723966245409,-264.278082,0.0001988,2]
[335191290,1723966245418,-155.987423,0.0001989,2]
[335191292,1723966245427,-155.987418,0.0001989,2]
[335191294,1723966245436,-3000.0,0.0001989,2]
[335191296,1723966245445,-152.798497,0.0001989,2]
[335191298,1723966245454,-160.0,0.00019893,3]
[335191300,1723966245464,-89232.29093758,0.000199,2]
[335191301,1723966245473,-3000.0,0.000199,2]
[335191303,1723966245482,-452.8071,0.000199,2]
[335191306,1723966245492,-162.20556,0.000199,2]
[335191308,1723966245502,-162.205569,0.000199,2]
[335191310,1723966245512,-264.278082,0.000199,2]
[335191312,1723966245521,-264.278088,0.000199,2]
[335191314,1723966245530,-3000.0,0.0001991,2]
[335191316,1723966245540,-3000.0,0.0001992,2]
[335191318,1723966245549,-3000.0,0.0001993,2]
[335191320,1723966245558,-3000.0,0.0001994,2]
[335191322,1723966245568,-3000.0,0.0001995,2]
[335191324,1723966245579,-3000.0,0.0001996,2]
[335191326,1723966245591,-3000.0,0.0001997,2]
[335191328,1723966245602,-200.0,0.00019973,2]
[335191330,1723966245613,-48989.50630951,0.0001998,2]
[335191332,1723966245623,-3000.0,0.0001998,2]
[335191334,1723966245632,-286536.10212643,0.0001999,2]
[335191336,1723966245642,-3000.0,0.0001999,2]
[335191338,1723966245651,-10508.70613937,0.0002,2]
[335191340,1723966245660,-106308.84368812,0.0002,2]
[335191535,1723966470187,229.69014172,0.00014519,2]
[335191536,1723966495611,226.80603595,0.00014519,2]
[335191537,1723966507373,15659.52903295,0.00014519,2]
[335191538,1723966507626,3826.40937795,0.00014519,2]
[335191545,1723966652736,158.230239,0.00014247,2]
[335191560,1723967124104,180.9145,0.00014247,2]
[335191565,1723967225161,-4225.74499805,0.000167,2]
[335191567,1723967234108,-229.5169277,0.000167,2]
[335191568,1723967234131,-84.39458302,0.000168,2]
[335191570,1723967241127,-270.34871735,0.000168,2]
[335191571,1723967241149,-277.63683817,0.00016977,2]
[335191572,1723967241170,-69.60132586,0.00016985,2]
[335191573,1723967250139,-208.03551231,0.00016985,2]
[335191574,1723967250162,-369.665074,0.00016986,2]
[335191575,1723967250185,-782.12449386,0.0001708,2]
[335191576,1723967250210,-214.27314264,0.00017189,2]
[335191577,1723967254099,-284.58314836,0.00017189,2]
[335191578,1723967254122,-300.0,0.00017361,2]
[335191579,1723967254145,-300.0,0.00017361,2]
[335191580,1723967254169,-947.49931404,0.00017362,2]
[335191584,1723967357133,-167.19165006,0.00017362,2]
[335191585,1723967370551,154.71377951,0.00014519,2]
[335191646,1723967432740,-245.0,0.00017262,2]
[335191648,1723967432750,-1679.0,0.00017362,2]
[335191654,1723967432794,-777.46748131,0.00017362,2]
[335191707,1723967438728,-2669.59835719,0.00017362,2]
[335191708,1723967438738,-3624.8800788,0.00017429,2]
[335191709,1723967438861,-159.190031,0.00017763,2]
[335191710,1723967438891,-159.190031,0.00017917,2]
[335191711,1723967438901,-159.190031,0.00018071,2]
[335191712,1723967438910,-159.190031,0.00018226,2]
[335191713,1723967438920,-300.0,0.00018379,2]
[335191714,1723967438930,-300.0,0.00018379,2]
[335191715,1723967438940,-159.190031,0.0001838,2]
[335191716,1723967438950,-159.190031,0.00018534,2]
[335191717,1723967438961,-4179.4424022,0.0001863,2]
[335191718,1723967438978,-1619.81290318,0.0001863,2]
[335191719,1723967438987,-17172.62811199,0.00018677,2]
[335191720,1723967438998,-886.46422806,0.00018678,2]
[335191721,1723967439008,-3400.62334677,0.00018678,2]
[335191722,1723967439017,-159.190031,0.00018688,2]
[335191723,1723967439027,-184.1868113,0.00018703,2]
[335191724,1723967439036,-500.0,0.00018703,2]
[335191725,1723967439046,-500.0,0.00018703,2]
[335191726,1723967439056,-500.0,0.00018703,2]
[335191727,1723967439066,-500.0,0.00018703,2]
[335191728,1723967439075,-500.0,0.00018703,2]
[335191729,1723967439085,-309.36495582,0.00018703,2]
[335191730,1723967439095,-500.0,0.00018703,2]
[335191731,1723967439105,-379.82111335,0.00018703,2]
[335191732,1723967439115,-500.0,0.00018703,2]
[335191733,1723967439124,-500.0,0.00018703,2]
[335191734,1723967439133,-500.0,0.00018703,2]
[335191735,1723967439143,-500.0,0.00018703,2]
[335191736,1723967439153,-500.0,0.00018703,2]
[335191737,1723967439162,-500.0,0.00018703,2]
[335191738,1723967439171,-500.0,0.00018703,2]
[335191739,1723967439181,-500.0,0.00018703,2]
[335191740,1723967439191,-500.0,0.00018703,2]
[335191741,1723967439200,-723.22,0.00018703,2]
[335191742,1723967439214,-651.31,0.00018703,2]
[335191743,1723967439223,-3113.04,0.00018703,2]
[335191744,1723967439233,-982.59,0.00018703,2]
[335191745,1723967439245,-818.72,0.00018703,2]
[335191746,1723967439254,-1035.0,0.00018703,2]
[335191747,1723967439264,-500.0,0.00018703,2]
[335191748,1723967439275,-500.0,0.00018703,2]
[335191749,1723967439285,-500.0,0.00018703,2]
[335191750,1723967439296,-17674.93,0.00018703,2]
[335191751,1723967439306,-891.72,0.00018703,2]
[335191752,1723967439316,-500.0,0.00018703,2]
[335191753,1723967439326,-500.0,0.00018703,2]
[335191754,1723967439336,-926.77,0.00018703,2]
[335191755,1723967439346,-17172.62811196,0.00018704,2]
[335191756,1723967439356,-17172.62811196,0.00018731,2]
[335191757,1723967439365,-657.58,0.00018747,3]
[335191758,1723967439375,-219.18,0.00018757,3]
[335191759,1723967439385,-17674.93,0.00018757,2]
[335191760,1723967439398,-57108.9150162,0.00018757,2]
[335191761,1723967439409,-17172.62811196,0.00018757,2]
[335191762,1723967439420,-876.73,0.00018758,3]
[335191763,1723967439430,-438.37,0.00018758,3]
[335191764,1723967439441,-57108.9150162,0.00018758,2]
[335191765,1723967439451,-17674.93,0.00018766,2]
[335191766,1723967439470,-114217.830032,0.00018767,2]